bitfinex/quotes_SOLUSD_20220212
["timestamp","ask_amount","ask_price","bid_price","bid_amount"]
[1644651726697,40.28408058,93.678,93.582,45.6127]
[1644651726898,5.34,93.677,93.582,45.6127]
[1644651727125,15.58073273,93.677,93.581,34.85741063]
[1644651727324,2.36073273,93.676,93.581,34.85741063]
[1644651727525,5.34,93.675,93.581,34.85741063]
[1644651727724,15.37,93.66,93.581,34.85741063]
[1644651727928,40.47977713,93.659,93.581,34.85741063]
[1644651728123,42.84050986,93.659,93.581,34.85741063]
[1644651728526,2.36073273,93.658,93.581,34.85741063]
[1644651728725,16.0324,93.65,93.581,34.85741063]
[1644651728925,5.34,93.649,93.581,34.85741063]
[1644651729927,31.4024,93.65,93.581,34.85741063]
[1644651731125,5.34,93.649,93.581,34.85741063]
[1644651731327,5.34,93.649,93.553,22.5935]
[1644651731529,2.36073273,93.648,93.553,22.5935]
[1644651731729,5.341,93.647,93.553,22.5935]
[1644651732334,5.341,93.647,93.554,41.90379801]
[1644651732729,2.36073273,93.646,93.554,41.90379801]
[1644651733134,40.28408058,93.644,93.554,41.90379801]
[1644651733430,15.37,93.64,93.554,41.90379801]
[1644651733632,5.341,93.639,93.554,41.90379801]
[1644651734431,2.36073273,93.638,93.554,41.90379801]
[1644651734630,34.76860096,93.629,93.517,5.341]
[1644651734831,15.37,93.62,93.507,22.9328]
[1644651735031,5.343,93.619,93.507,22.9328]
[1644651735233,23.7942,93.618,93.491,5.343]
[1644651735431,23.7942,93.618,93.489,5.344]
[1644651735636,5.344,93.617,93.487,36.58428345]
[1644651735833,7.70473273,93.617,93.488,5.344]
[1644651736030,2.36073273,93.616,93.488,5.344]
[1644651736231,40.65525675,93.614,93.488,5.344]
[1644651736530,15.37,93.6,93.488,5.344]
[1644651736731,87.44580096,93.599,93.488,5.344]
[1644651737933,2.36073273,93.598,93.487,36.58428345]
[1644651738137,5.345,93.597,93.487,36.58428345]
[1644651739535,7.70573273,93.598,93.488,5.345]
[1644651741036,5.345,93.598,93.488,5.345]
[1644651742237,82.10080096,93.599,93.488,5.345]
[1644651742437,82.10080096,93.599,93.487,36.58428345]
[1644651742638,5.345,93.598,93.487,36.58428345]
[1644651742839,82.10080096,93.599,93.488,5.345]
[1644651744640,82.10080096,93.599,93.49,15.37]
[1644651745146,82.10080096,93.599,93.488,5.345]
[1644651745343,16.0435,93.59,93.488,5.345]
[1644651745542,5.345,93.589,93.488,5.345]
[1644651747945,5.345,93.589,93.487,36.58428345]
[1644651748146,32.3586,93.59,93.488,5.345]
[1644651748350,5.345,93.589,93.487,36.58428345]
[1644651754369,16.0435,93.59,93.488,5.345]
[1644651754568,5.345,93.589,93.487,36.58428345]
[1644651754767,16.0435,93.59,93.488,5.345]
[1644651754969,5.345,93.589,93.488,5.345]
[1644651756868,5.345,93.589,93.492,1.50455859]
[1644651757270,5.345,93.589,93.494,1.50455859]
[1644651757470,5.345,93.589,93.493,1.50455859]
[1644651758070,5.345,93.589,93.494,1.50455859]
[1644651759771,5.345,93.589,93.487,36.58428345]
[1644651759772,5.345,93.589,93.495,1.50455859]
[1644651759971,5.345,93.589,93.501,1.50455859]
[1644651760175,16.0435,93.59,93.502,38.0730171]
[1644651760374,16.0435,93.59,93.503,22.7032]
[1644651760573,5.344,93.589,93.503,22.7032]
[1644651762777,5.344,93.589,93.505,1.50455859]
[1644651762977,5.344,93.593,93.505,1.50455859]
[1644651763176,5.344,93.593,93.513,1.50455859]
[1644651763379,5.344,93.593,93.512,1.50455859]
[1644651763578,5.344,93.593,93.51,1.50455859]
[1644651763777,2.36065367,93.592,93.51,1.50455859]
[1644651763979,5.344,93.591,93.509,1.50455859]
[1644651764181,5.344,93.591,93.51,1.50455859]
[1644651764379,2.36065367,93.59,93.509,1.50455859]
[1644651764580,5.344,93.589,93.509,1.50455859]
[1644651764985,2.36065367,93.588,93.509,1.50455859]
[1644651765179,5.344,93.587,93.509,1.50455859]
[1644651765578,5.344,93.587,93.51,1.50455859]
[1644651765978,5.344,93.587,93.512,1.50455859]
[1644651766179,2.36065367,93.588,93.512,1.50455859]
[1644651766783,31.4132,93.59,93.512,1.50455859]
[1644651767080,5.344,93.589,93.512,1.50455859]
[1644651767579,31.4132,93.59,93.512,1.50455859]
[1644651767980,2.36065367,93.588,93.512,1.50455859]
[1644651768181,5.344,93.587,93.511,1.50455859]
[1644651769180,5.344,93.589,93.509,1.50455859]
[1644651769383,5.345,93.586,93.509,1.50455859]
[1644651769586,5.344,93.589,93.51,1.50455859]
[1644651769781,31.4132,93.59,93.509,1.50455859]
[1644651769981,5.344,93.588,93.509,1.50455859]
[1644651770181,31.4132,93.59,93.509,1.50455859]
[1644651770384,31.4132,93.59,93.51,1.50455859]
[1644651770587,5.344,93.589,93.51,1.50455859]
[1644651770787,31.4132,93.59,93.51,1.50455859]
[1644651771190,2.36065367,93.588,93.503,23.9607]
[1644651771391,16.0452,93.58,93.495,1.50455859]
[1644651771591,5.345,93.579,93.491,1.50455859]
[1644651771793,31.4152,93.58,93.491,1.50455859]
[1644651771995,31.4152,93.58,93.489,1.50455859]
[1644651772194,23.3528,93.579,93.489,1.50455859]
[1644651772395,36.65254882,93.578,93.49,46.08303483]
[1644651773596,36.65254882,93.578,93.49,47.58759342]
[1644651773797,5.345,93.577,93.49,47.58759342]
[1644651773996,10.88201357,93.577,93.49,47.58759342]
[1644651774604,10.88201357,93.577,93.49,46.08303483]
[1644651774801,10.88201357,93.577,93.492,1.50455859]
[1644651775003,5.53701357,93.577,93.495,1.50455859]
[1644651775204,5.53701357,93.577,93.496,5.345]
[1644651775602,5.53701357,93.577,93.499,1.50455859]
[1644651775801,5.53701357,93.577,93.49,46.08303483]
[1644651775802,5.53701357,93.577,93.51,15.37]
[1644651776004,36.86083576,93.611,93.512,35.92686729]
[1644651776204,5.53972662,93.594,93.514,1.50455859]
[1644651776403,5.53972662,93.594,93.515,5.344]
[1644651776605,36.86083576,93.611,93.515,5.344]
[1644651776804,36.86083576,93.611,93.516,23.2987]
[1644651776805,5.53474619,93.594,93.516,23.2987]
[1644651777210,36.86083576,93.611,93.516,23.2987]
[1644651777406,36.86083576,93.611,93.517,6.84755859]
[1644651777605,36.86083576,93.611,93.518,1.50455859]
[1644651777807,36.86083576,93.611,93.519,5.343]
[1644651778006,36.86083576,93.611,93.52,1.50455859]
[1644651778208,36.86083576,93.611,93.525,1.50455859]
[1644651778406,36.86083576,93.611,93.526,1.50455859]
[1644651778605,36.86083576,93.611,93.496,6.84755859]
[1644651778606,1.47471984,93.603,93.496,6.84755859]
[1644651778806,39.11461024,93.61,93.496,5.343]
[1644651778807,15.37,93.59,93.496,5.343]
[1644651779007,5.345,93.589,93.488,1.50455859]
[1644651779207,1.47471984,93.586,93.478,1.50455859]
[1644651779408,5.345,93.585,93.479,1.50455859]
[1644651779619,15.37,93.58,93.483,1.50455859]
[1644651779824,15.37,93.58,93.482,1.50455859]
[1644651780021,2.36171024,93.579,93.482,1.50455859]
[1644651780222,5.345,93.578,93.48,40.00083123]
[1644651780720,25.10811024,93.577,93.48,40.00083123]
[1644651781124,5.345,93.576,93.48,40.00083123]
[1644651781523,7.70671024,93.576,93.48,40.00083123]
[1644651781723,2.36171024,93.575,93.48,40.00083123]
[1644651781923,5.346,93.574,93.48,40.00083123]
[1644651783123,5.346,93.576,93.48,40.00083123]
[1644651783724,5.346,93.576,93.48,41.50538982]
[1644651783925,22.7464,93.577,93.481,5.92725192]
[1644651784324,22.7464,93.577,93.482,1.50455859]
[1644651784525,22.7464,93.577,93.483,5.345]
[1644651784724,22.7464,93.577,93.483,6.84955859]
[1644651784927,22.7464,93.577,93.489,1.50455859]
[1644651785224,5.345,93.603,93.492,1.50455859]
[1644651785424,1.47471984,93.608,93.494,1.50455859]
[1644651785625,36.04020807,93.605,93.505,36.92076517]
[1644651785825,36.04020807,93.605,93.509,1.50455859]
[1644651786025,36.04020807,93.605,93.51,1.50455859]
[1644651786326,5.344,93.617,93.51,1.50455859]
[1644651786527,30.2337,93.618,93.512,1.50455859]
[1644651786727,24.8897,93.618,93.512,1.50455859]
[1644651786925,24.8897,93.618,93.511,0.58225192]
[1644651786926,5.343,93.617,93.518,1.50455859]
[1644651787127,5.343,93.617,93.53,15.37]
[1644651787327,5.343,93.617,93.531,64.13102079]
[1644651789729,24.8897,93.618,93.532,0.58225192]
[1644651791533,36.50558833,93.617,93.532,0.58225192]
[1644651792738,5.343,93.616,93.532,0.58225192]
[1644651797455,7.70467723,93.616,93.532,0.58225192]
[1644651798279,5.343,93.616,93.532,0.58225192]
[1644651799380,36.50558833,93.617,93.532,0.58225192]
[1644651801584,5.53696667,93.624,93.532,0.58225192]
[1644651802584,39.39559005,93.623,93.532,0.58225192]
[1644651802785,39.39559005,93.623,93.533,5.343]
[1644651803184,39.39559005,93.623,93.534,0.58225192]
[1644651803386,5.343,93.622,93.534,0.58225192]
[1644651806387,5.343,93.622,93.532,0.58225192]
[1644651807194,2.36167723,93.621,93.532,0.58225192]
[1644651807394,5.343,93.62,93.532,0.58225192]
[1644651807590,20.713,93.62,93.532,0.58225192]
[1644651807790,2.36167723,93.619,93.532,0.58225192]
[1644651807991,5.343,93.618,93.532,0.58225192]
[1644651808191,21.80194787,93.618,93.532,0.58225192]
[1644651808393,2.36167723,93.617,93.532,0.58225192]
[1644651808591,5.343,93.616,93.532,0.58225192]
[1644651808992,2.36167723,93.615,93.532,0.58225192]
[1644651809191,5.343,93.614,93.532,0.58225192]
[1644651809393,15.37,93.61,93.532,0.58225192]
[1644651809592,34.52213385,93.608,93.532,0.58225192]
[1644651809792,5.343,93.607,93.532,0.58225192]
[1644651809993,15.37,93.61,93.532,0.58225192]
[1644651811096,44.18956398,93.609,93.532,0.58225192]
[1644651811298,5.343,93.608,93.532,0.58225192]
[1644651813604,44.18956398,93.609,93.532,0.58225192]
[1644651814102,15.37,93.61,93.532,0.58225192]
[1644651814302,5.343,93.609,93.532,0.58225192]
[1644651815603,15.37,93.61,93.532,0.58225192]
[1644651817104,15.37,93.61,93.532,25.05465192]
[1644651817506,5.343,93.616,93.532,25.05465192]
[1644651817706,5.53696667,93.624,93.533,5.343]
[1644651817909,5.53696667,93.624,93.534,1.50455859]
[1644651818108,16.337,93.702,93.544,1.50455859]
[1644651818109,1.47471984,93.65,93.544,1.50455859]
[1644651818408,35.1825519,93.649,93.547,1.50455859]
[1644651818706,35.1825519,93.649,93.548,23.8795]
[1644651819105,35.1825519,93.649,93.549,5.341]
[1644651820110,40.5235519,93.649,93.549,5.341]
[1644651820607,40.5235519,93.649,93.552,1.50455859]
[1644651820809,35.1825519,93.649,93.555,1.50455859]
[1644651821008,35.1825519,93.649,93.554,1.50455859]
[1644651821209,35.1825519,93.649,93.556,0.58225192]
[1644651821809,15.37,93.65,93.557,5.341]
[1644651822210,0.03896946,93.66,93.558,1.50455859]
[1644651822410,0.03896946,93.66,93.56,1.50455859]
[1644651822610,0.03896946,93.67,93.566,1.50455859]
[1644651822813,0.03896946,93.66,93.568,1.50455859]
[1644651823010,0.03896946,93.67,93.569,6.84555859]
[1644651823211,2.36713537,93.659,93.569,1.50455859]
[1644651823411,1.47471984,93.64,93.556,0.58225192]
[1644651823615,15.37,93.63,93.556,0.58225192]
[1644651823813,1.47471984,93.609,93.556,0.58225192]
[1644651824015,15.37,93.6,93.556,0.58225192]
[1644651824212,15.37,93.6,93.528,35.88755553]
[1644651824412,5.345,93.599,93.528,35.88755553]
[1644651824617,7.71213537,93.599,93.528,35.88755553]
[1644651824813,7.71213537,93.599,93.5,0.58225192]
[1644651825115,49.89361579,93.598,93.5,0.58225192]
[1644651825316,5.344,93.597,93.5,0.58225192]
[1644651825613,7.70571579,93.597,93.5,0.58225192]
[1644651825814,2.36171579,93.596,93.501,39.74185802]
[1644651826414,2.36171579,93.596,93.502,22.8654]
[1644651827216,2.36171579,93.596,93.503,0.58225192]
[1644651827614,5.344,93.597,93.504,23.3838]
[1644651828623,16.0434,93.59,93.504,23.3838]
[1644651828821,2.36171579,93.596,93.503,0.58225192]
[1644651828822,15.37,93.58,93.503,0.58225192]
[1644651829223,2.36171579,93.579,93.503,0.58225192]
[1644651829418,5.345,93.578,93.503,0.58225192]
[1644651829820,15.37,93.58,93.503,0.58225192]
[1644651830019,31.4151,93.58,93.503,0.58225192]
[1644651830422,33.77681579,93.58,93.503,0.58225192]
[1644651830620,31.4151,93.58,93.503,0.58225192]
[1644651831524,5.345,93.579,93.502,0.58225192]
[1644651831825,31.4151,93.58,93.502,0.58225192]
[1644651832043,5.345,93.579,93.502,25.00745192]
[1644651833246,24.0984,93.586,93.502,25.00745192]
[1644651833446,5.345,93.585,93.502,25.00745192]
[1644651835146,24.0984,93.586,93.502,25.00745192]
[1644651836246,5.345,93.585,93.502,25.00745192]
[1644651837447,24.0984,93.586,93.502,25.00745192]
[1644651838648,5.345,93.585,93.502,25.00745192]
[1644651841756,15.37,93.58,93.502,25.00745192]
[1644651844363,5.345,93.579,93.502,0.58225192]
[1644651846769,31.4152,93.58,93.502,0.58225192]
[1644651846968,31.4152,93.58,93.503,23.897]
[1644651847570,31.4152,93.58,93.504,0.58225192]
[1644651847767,5.345,93.579,93.504,0.58225192]
[1644651850073,31.4152,93.58,93.504,0.58225192]
[1644651850471,24.0984,93.586,93.504,0.58225192]
[1644651850870,24.0984,93.586,93.505,5.345]
[1644651851272,1.47471984,93.605,93.506,2.96591983]
[1644651851475,47.39148194,93.597,93.506,29.35745368]
[1644651851673,15.9969,93.604,93.508,1.51153385]
[1644651852171,15.9969,93.604,93.51,1.51153385]
[1644651852573,5.344,93.613,93.511,7.72766791]
[1644651852771,44.71767472,93.597,93.512,1.51153385]
[1644651852973,44.71767472,93.597,93.513,5.344]
[1644651853171,5.344,93.596,93.511,1.51153385]
[1644651853373,23.6137,93.595,93.506,25.46225192]
[1644651853575,5.344,93.594,93.506,25.46225192]
[1644651853972,5.344,93.594,93.507,1.51153385]
[1644651854173,5.344,93.594,93.509,1.51153385]
[1644651854574,23.6137,93.595,93.509,6.85553385]
[1644651854774,5.344,93.608,93.509,5.344]
[1644651854974,5.344,93.608,93.509,6.85553385]
[1644651855473,5.344,93.608,93.51,1.51153385]
[1644651855977,39.86487328,93.607,93.51,1.51153385]
[1644651856174,5.344,93.606,93.51,1.51153385]
[1644651856775,68.0,93.605,93.482,2.98503827]
[1644651857074,1.47471984,93.57,93.466,1.51447249]
[1644651857275,16.84471984,93.56,93.466,1.51447249]
[1644651857474,1.47471984,93.549,93.445,1.51447249]
[1644651857674,15.37,93.54,93.445,1.51447249]
[1644651857876,15.37,93.54,93.443,47.23376066]
[1644651858074,16.0544,93.53,93.418,48.51917249]
[1644651858299,15.37,93.52,93.418,48.51917249]
[1644651858500,5.349,93.519,93.418,47.0047]
[1644651858901,16.0577,93.51,93.418,47.0047]
[1644651859199,68.9035,93.52,93.417,0.97397876]
[1644651859200,15.37,93.5,93.417,0.97397876]
[1644651859401,5.349,93.499,93.417,0.97397876]
[1644651859601,192.08,93.49,93.417,0.97397876]
[1644651859800,7.71094143,93.499,93.417,0.97397876]
[1644651859801,15.37,93.48,93.417,0.97397876]
[1644651860002,207.45,93.47,93.417,0.97397876]
[1644651860204,31.4393,93.46,93.417,0.97397876]
[1644651860806,17.73194143,93.46,93.347,69.6347]
[1644651861004,5.352,93.459,93.347,69.6347]
[1644651861205,5.352,93.459,93.335,1.51447249]
[1644651861405,208.1503,93.44,93.322,6.86647249]
[1644651861706,192.08,93.42,93.322,5.352]
[1644651861906,15.37,93.41,93.322,5.352]
[1644651862304,2.36194143,93.409,93.322,5.352]
[1644651862508,5.355,93.408,93.322,5.352]
[1644651862706,31.96064007,93.399,93.322,5.352]
[1644651862909,15.37,93.39,93.322,5.352]
[1644651863104,5.355,93.389,93.322,5.352]
[1644651863305,15.37,93.39,93.322,5.352]
[1644651863514,5.355,93.389,93.322,5.352]
[1644651863706,16.905,93.389,93.322,5.352]
[1644651863908,16.0803,93.38,93.322,5.352]
[1644651864108,15.37,93.37,93.322,5.352]
[1644651864307,15.37,93.37,93.32,41.32517039]
[1644651867209,15.37,93.39,93.32,41.32517039]
[1644651867410,15.37,93.39,93.321,7.73866791]
[1644651867610,5.355,93.439,93.321,7.73866791]
[1644651867810,24.2437,93.467,93.33,31.4367]
[1644651867811,5.354,93.449,93.33,31.4367]
[1644651868016,39.56621635,93.459,93.331,5.353]
[1644651868214,15.6906,93.471,93.331,7.73666791]
[1644651868413,5.353,93.484,93.332,18.66476341]
[1644651868612,15.37,93.49,93.333,5.352]
[1644651868613,5.352,93.489,93.333,5.352]
[1644651868813,5.352,93.489,93.333,21.6330955]
[1644651869011,15.37,93.49,93.334,16.2810955]
[1644651869212,43.67646659,93.489,93.335,42.89425652]
[1644651869412,49.02846659,93.489,93.335,55.61567087]
[1644651869613,49.02846659,93.489,93.336,16.2810955]
[1644651869817,49.02846659,93.489,93.351,46.43698782]
[1644651870014,2.36194143,93.488,93.352,5.352]
[1644651870215,5.352,93.487,93.352,5.352]
[1644651870417,5.352,93.487,93.353,2.38366791]
[1644651870618,2.36194143,93.486,93.354,5.352]
[1644651870816,31.4321,93.48,93.351,46.43698782]
[1644651871315,23.80992641,93.479,93.352,5.352]
[1644651871517,18.45792641,93.479,93.352,5.352]
[1644651871714,23.80992641,93.478,93.352,5.352]
[1644651871916,18.45792641,93.478,93.352,5.352]
[1644651872114,2.36194143,93.477,93.352,5.352]
[1644651872314,5.352,93.476,93.352,5.352]
[1644651872716,16.0643,93.47,93.353,2.38366791]
[1644651872915,26.31349715,93.469,93.353,2.38366791]
[1644651873118,16.0643,93.47,93.353,2.38366791]
[1644651873415,16.0643,93.47,93.354,5.352]
[1644651873615,15.37,93.48,93.354,5.352]
[1644651873917,5.352,93.489,93.354,5.352]
[1644651873918,5.352,93.489,93.36,16.0628]
[1644651874115,2.36194143,93.49,93.37,15.37]
[1644651874315,5.351,93.499,93.37,15.37]
[1644651874517,15.9903,93.506,93.371,7.73466791]
[1644651874917,15.9903,93.506,93.372,2.38366791]
[1644651875116,39.41151191,93.504,93.374,47.94681253]
[1644651875419,5.351,93.503,93.375,2.38366791]
[1644651875616,5.351,93.503,93.38,15.37]
[1644651875819,16.0587,93.5,93.38,15.37]
[1644651876018,5.351,93.499,93.374,47.94681253]
[1644651876218,7.71294143,93.499,93.374,47.94681253]
[1644651876419,2.36194143,93.498,93.374,47.94681253]
[1644651876620,5.351,93.497,93.374,47.94681253]
[1644651876821,16.0635,93.47,93.374,47.94681253]
[1644651877021,35.93045183,93.469,93.374,47.94681253]
[1644651878022,16.0655,93.46,93.374,47.94681253]
[1644651878224,5.352,93.459,93.374,47.94681253]
[1644651878429,7.71394143,93.459,93.35,16.0644]
[1644651878725,2.36194143,93.458,93.35,16.0644]
[1644651878927,5.353,93.457,93.35,16.0644]
[1644651879126,16.0673,93.45,93.331,28.8445]
[1644651879325,42.01944585,93.449,93.332,36.10171701]
[1644651879526,44.38138728,93.449,93.332,36.10171701]
[1644651879929,2.36194143,93.448,93.332,36.10171701]
[1644651880128,2.36194143,93.448,93.333,5.353]
[1644651880327,5.353,93.447,93.332,36.10171701]
[1644651880827,16.0693,93.44,93.332,36.10171701]
[1644651881332,5.354,93.439,93.332,36.10171701]
[1644651881530,15.37,93.43,93.332,36.10171701]
[1644651881731,33.32351789,93.429,93.332,36.10171701]
[1644651883032,33.32351789,93.429,93.333,5.354]
[1644651883233,33.32351789,93.429,93.332,36.10171701]
[1644651883234,5.354,93.428,93.332,36.10171701]
[1644651886258,33.32351789,93.429,93.333,5.354]
[1644651886956,15.37,93.43,93.333,5.354]
[1644651887254,31.4407,93.43,93.333,5.354]
[1644651887456,2.36194143,93.428,93.333,5.354]
[1644651887655,5.354,93.427,93.333,5.354]
[1644651888055,37.03618317,93.426,93.333,5.354]
[1644651888256,5.354,93.425,93.333,5.354]
[1644651888456,32.95378057,93.409,93.332,36.10171701]
[1644651889156,5.355,93.408,93.332,36.10171701]
[1644651889357,5.355,93.408,93.332,36.03159322]
[1644651890056,48.70878057,93.409,93.332,36.03159322]
[1644651890256,5.355,93.408,93.332,36.03159322]
[1644651891460,5.355,93.408,93.311,23.7759]
[1644651891461,16.0764,93.4,93.307,1.51447249]
[1644651891659,15.37,93.39,93.301,5.355]
[1644651892064,7.70730499,93.389,93.301,5.355]
[1644651892458,39.45761195,93.388,93.302,41.17290466]
[1644651892661,5.356,93.387,93.302,41.17290466]
[1644651892858,16.0803,93.38,93.302,41.17290466]
[1644651893058,31.4503,93.38,93.302,41.17290466]
[1644651894063,16.0817,93.37,93.302,41.17290466]
[1644651894260,32.95378057,93.369,93.302,41.17290466]
[1644651894460,5.357,93.368,93.302,41.17290466]
[1644651894661,32.95378057,93.369,93.302,41.17290466]
[1644651896263,32.95378057,93.369,93.281,23.3661]
[1644651896264,32.95378057,93.369,93.281,22.8661]
[1644651896463,5.357,93.368,93.281,22.8661]
[1644651897265,5.357,93.368,93.282,47.65257722]
[1644651897565,32.95378057,93.369,93.282,47.65257722]
[1644651898167,16.0828,93.36,93.282,47.65257722]
[1644651898368,5.357,93.359,93.282,47.65257722]
[1644651898572,16.0828,93.36,93.282,47.65257722]
[1644651898774,5.357,93.359,93.282,47.65257722]
[1644651899171,7.70830499,93.359,93.282,47.65257722]
[1644651899566,5.357,93.359,93.282,47.65257722]
[1644651900772,5.357,93.379,93.282,47.65257722]
[1644651900970,15.37,93.38,93.282,47.65257722]
[1644651900971,5.357,93.407,93.292,1.51447249]
[1644651901170,5.357,93.408,93.296,1.51447249]
[1644651901370,5.356,93.406,93.298,1.51447249]
[1644651901672,39.1090009,93.404,93.299,37.83710914]
[1644651901970,39.1090009,93.404,93.3,16.0733]
[1644651902171,5.356,93.419,93.3,31.4433]
[1644651902370,15.37,93.43,93.306,1.51447249]
[1644651902570,15.37,93.43,93.31,16.88447249]
[1644651902769,15.37,93.45,93.311,25.47847249]
[1644651902970,5.354,93.437,93.33,16.0677]
[1644651903171,47.46506401,93.436,93.331,40.85099927]
[1644651903371,5.354,93.435,93.331,40.85099927]
[1644651905576,5.354,93.439,93.34,16.0664]
[1644651905773,15.37,93.44,93.341,5.353]
[1644651905973,5.354,93.456,93.341,7.73666791]
[1644651906174,5.353,93.466,93.341,7.73666791]
[1644651906376,5.353,93.479,93.351,1.51447249]
[1644651906576,40.41179426,93.492,93.38,16.0582]
[1644651906775,40.41179426,93.492,93.372,1.51447249]
[1644651906973,15.37,93.48,93.372,1.51447249]
[1644651907173,53.5588,93.47,93.372,1.51447249]
[1644651907373,15.37,93.46,93.353,47.4267]
[1644651907774,29.64829327,93.459,93.354,43.87592295]
[1644651907976,29.64829327,93.459,93.354,49.22792295]
[1644651908376,16.0677,93.45,93.354,49.22792295]
[1644651908981,29.64829327,93.459,93.354,49.22792295]
[1644651909177,5.352,93.458,93.354,43.87592295]
[1644651909381,15.37,93.48,93.355,5.352]
[1644651909579,15.37,93.48,93.36,16.0624]
[1644651909781,15.37,93.48,93.361,5.352]
[1644651909979,5.352,93.491,93.369,1.51447249]
[1644651910180,5.352,93.498,93.373,1.51447249]
[1644651910384,24.404,93.535,93.373,1.51447249]
[1644651910385,5.352,93.514,93.373,1.51447249]
[1644651910580,1.47471984,93.522,93.38,15.37]
[1644651910804,15.37,93.54,93.38,15.37]
[1644651910805,1.47471984,93.529,93.41,16.0533]
[1644651910981,5.349,93.521,93.41,16.0533]
[1644651911283,5.349,93.535,93.411,5.349]
[1644651911579,24.5183,93.548,93.411,5.349]
[1644651911580,47.25949223,93.534,93.412,40.02879206]
[1644651912180,15.37,93.54,93.412,40.02879206]
[1644651912381,388.07130631,93.781,93.412,40.02879206]
[1644651912382,5.348,93.544,93.43,16.0496]
[1644651912582,5.348,93.552,93.43,31.4196]
[1644651912784,1.47471984,93.565,93.431,5.348]
[1644651912983,5.347,93.559,93.432,22.784]
[1644651913184,38.8677299,93.559,93.433,49.46685443]
[1644651913384,5.347,93.558,93.433,49.46685443]
[1644651913582,38.8677299,93.559,93.433,49.46685443]
[1644651913785,38.8677299,93.559,93.46,16.0447]
[1644651913984,5.347,93.558,93.461,51.22561965]
[1644651914184,5.347,93.558,93.461,45.87861965]
[1644651914497,2.35130499,93.557,93.461,45.87861965]
[1644651914686,5.347,93.556,93.461,45.87861965]
[1644651915084,2.34056911,93.555,93.461,45.87861965]
[1644651915583,5.347,93.554,93.461,45.87861965]
[1644651915883,5.347,93.557,93.461,45.87861965]
[1644651916182,38.8677299,93.559,93.461,45.87861965]
[1644651916183,5.347,93.558,93.461,45.87861965]
[1644651916988,38.8677299,93.559,93.461,45.87861965]
[1644651917984,5.347,93.572,93.47,16.0438]
[1644651918186,5.346,93.587,93.47,16.0438]
[1644651918387,5.345,93.597,93.47,16.0438]
[1644651919088,42.81759587,93.596,93.47,16.0438]
[1644651919289,5.345,93.595,93.471,5.345]
[1644651919593,5.345,93.595,93.491,37.9913351]
[1644651920988,5.345,93.595,93.5,16.039]
[1644651921189,5.345,93.599,93.5,16.039]
[1644651921392,5.345,93.599,93.501,5.344]
[1644651921590,0.03819743,93.6,93.501,5.344]
[1644651921791,0.03819743,93.61,93.492,5.344]
[1644651921991,0.03819743,93.61,93.51,16.0374]
[1644651922193,0.03819743,93.61,93.511,53.13551195]
[1644651923193,0.03819743,93.63,93.53,16.0343]
[1644651923393,12.87,93.66,93.52,53.4403]
[1644651923394,0.03819743,93.61,93.531,29.7309]
[1644651923595,0.03819743,93.62,93.531,24.3879]
[1644651923793,0.03819743,93.65,93.533,46.75875699]
[1644651923995,5.341,93.649,93.533,46.75875699]
[1644651924193,0.03819743,93.64,93.533,46.75875699]
[1644651924593,23.59909468,93.638,93.54,16.0318]
[1644651924992,5.341,93.637,93.541,5.341]
[1644651925817,0.03819743,93.64,93.541,5.341]
[1644651926016,16.07109743,93.65,93.541,5.341]
[1644651926216,0.03819743,93.64,93.541,14.971]
[1644651926417,0.03819743,93.65,93.55,16.0293]
[1644651926718,0.03819743,93.64,93.551,53.52530427]
[1644651926921,0.03819743,93.65,93.551,53.52530427]
[1644651928221,5.341,93.667,93.56,16.0268]
[1644651928419,0.03819743,93.65,93.561,5.339]
[1644651928624,0.03819743,93.67,93.561,5.339]
[1644651928919,0.03819743,93.69,93.562,2.38366791]